bitfinex-derivatives/quotes_ETHF0:USTF0_20250726
["timestamp","ask_amount","ask_price","bid_price","bid_amount"]
[1753501923508,2.1108,3744.4,3744.3,2.91391]
[1753501923708,2.1108,3744.4,3744.3,13.17591]
[1753501923908,2.1108,3744.4,3744.3,13.76561]
[1753501924411,2.1108,3744.4,3744.3,14.34951]
[1753501925605,2.1108,3744.4,3744.3,0.53401]
[1753501925812,2.1108,3744.4,3744.3,11.41701]
[1753501925813,2.82598018,3744.4,3744.3,11.41701]
[1753501926014,6.61668018,3744.4,3744.3,10.883]
[1753501926212,6.61668018,3744.4,3743.7,0.7996]
[1753501926510,3.94143116,3744.7,3743.5,0.2736648]
[1753501926511,0.7611,3744.0,3743.9,11.41807]
[1753501926710,2.28048018,3744.0,3743.9,0.53407]
[1753501926905,1.5653,3744.0,3743.9,14.66887]
[1753501927502,1.5653,3744.0,3743.9,14.07917]
[1753501927706,1.5653,3744.0,3743.9,13.49527]
[1753501928003,1.5653,3744.0,3743.9,1.33367]
[1753501928207,1.5653,3744.0,3743.9,11.41807]
[1753501928715,2.27985731,3744.0,3743.9,11.41807]
[1753501928915,1.5653,3744.0,3743.9,11.41807]
[1753501929116,1.5653,3744.0,3743.9,0.53407]
[1753501929416,1.5653,3744.0,3743.9,11.41707]
[1753501931517,1.5653,3744.0,3743.9,0.53407]
[1753501931716,1.5653,3744.0,3743.9,11.41707]
[1753501932709,1.5653,3743.7,3743.6,1.33371]
[1753501933017,1.5653,3743.7,3742.9,24.41353]
[1753501933018,0.53414,3743.4,3743.3,3.7917]
[1753501933218,1.105,3743.1,3743.0,3.785]
[1753501934119,1.105,3743.1,3743.0,3.1953]
[1753501934315,0.63811,3742.9,3742.8,0.5897]
[1753501934620,4.78211,3742.9,3742.8,10.893]
[1753501934920,1.0401,3742.9,3742.8,14.1438]
[1753501935121,1.105,3742.9,3742.8,14.1438]
[1753501935311,1.105,3742.9,3742.8,14.67803]
[1753501935512,0.3739,3742.9,3742.8,14.67803]
[1753501936315,0.9362,3742.9,3742.8,14.67803]
[1753501936518,1.105,3742.9,3742.8,14.67803]
[1753501936712,1.105,3742.9,3742.8,2.0772]
[1753501936915,1.105,3742.9,3742.8,1.6802]
[1753501937114,1.105,3742.9,3742.8,0.7996]
[1753501937520,1.105,3742.9,3742.8,1.33383]
[1753501937722,1.63921,3742.9,3742.8,0.7996]
[1753501937924,1.105,3742.9,3742.8,0.7996]
[1753501938223,1.63921,3742.9,3742.8,0.7996]
[1753501939320,1.105,3742.9,3742.8,0.7996]
[1753501939626,1.105,3742.8,3742.7,0.53424]
[1753501939819,1.105,3742.8,3742.7,1.33384]
[1753501940323,1.105,3742.8,3742.7,3.78504]
[1753501941222,0.3739,3742.8,3742.7,3.78504]
[1753501941423,0.5623,3743.7,3743.3,1.9732]
[1753501941729,0.5623,3743.7,3743.6,4.51854116]
[1753501941730,0.3739,3743.7,3743.6,4.51854116]
[1753501941925,3.5817,3743.9,3743.8,3.78488]
[1753501943525,0.3739,3744.3,3744.2,2.90421]
[1753501943724,0.3739,3744.3,3744.2,3.78481]
[1753501944324,0.9362,3744.3,3744.2,3.78481]
[1753501945029,1.16125,3744.1,3744.0,0.7996]
[1753501945324,1.105,3743.9,3743.8,1.33368]
[1753501945521,1.105,3743.9,3743.8,3.2508]
[1753501945727,1.63907,3743.9,3743.8,0.7996]
[1753501946928,1.63907,3743.9,3743.8,2.0772]
[1753501947130,1.63907,3743.9,3743.8,3.2508]
[1753501950733,1.105,3743.9,3743.8,3.2508]
[1753501951131,1.63907,3743.9,3743.8,3.2508]
[1753501951533,1.105,3743.9,3743.8,3.2508]
[1753501952027,3.2078,3744.1,3744.0,0.53406]
[1753501952233,4.31642919,3744.1,3744.0,3.81426]
[1753501952428,3.6041,3744.1,3744.0,3.81426]
[1753501954235,4.31707236,3744.1,3744.0,3.81426]
[1753501954732,4.92457236,3744.1,3744.0,3.81426]
[1753501958236,5.08157236,3744.1,3744.0,3.81426]
[1753501958736,5.61561236,3744.1,3744.0,0.7951]
[1753501961937,5.61561236,3744.1,3744.0,3.81426]
[1753501962138,5.61561236,3744.1,3744.0,3.2802]
[1753501962840,5.61561236,3744.1,3744.0,2.6909]
[1753501963440,5.61561236,3744.1,3744.0,1.7286]
[1753501963641,5.61561236,3744.1,3744.0,0.7951]
[1753501967543,0.93041,3743.6,3743.5,1.9586]
[1753501967742,1.69491,3743.6,3743.5,1.32923]
[1753501968044,2.40902681,3743.6,3743.5,0.7951]
[1753501968244,2.40902681,3743.6,3743.5,2.3028]
[1753501968445,2.40902681,3743.6,3743.5,3.42623]
[1753501968647,2.40902681,3743.6,3743.5,2.8921]
[1753501969045,2.40902681,3743.6,3743.5,3.42623]
[1753501969542,2.40902681,3743.6,3743.5,3.81433]
[1753501969742,2.40902681,3743.6,3743.1,1.85578]
[1753501969743,0.4929,3743.2,3743.1,1.85578]
[1753501970040,0.3963,3743.5,3743.4,1.3216]
[1753501970238,1.11122194,3743.5,3743.4,3.81434]
[1753501971541,0.71492194,3743.5,3743.4,4.54797116]
[1753501971935,0.71492194,3743.5,3743.4,7.75577116]
[1753501972340,1.0038,3744.0,3743.9,1.85567]
[1753501972543,1.71887739,3744.0,3743.9,3.81427]
[1753501972744,1.81547739,3744.0,3743.9,3.2802]
[1753501972951,1.87587739,3744.0,3743.9,3.81427]
[1753501973641,1.8758735,3744.0,3743.9,3.81427]
[1753501976255,1.8154735,3744.0,3743.9,3.81427]
[1753501976856,1.7188735,3744.0,3743.9,3.81427]
[1753501977158,1.1113735,3744.0,3743.9,4.54790116]
[1753501977949,0.7150735,3744.0,3743.9,4.54790116]
[1753501979050,1.69478,3744.6,3744.5,3.2802]
[1753501979256,2.40943878,3744.6,3744.5,3.2802]
[1753501980661,1.87545878,3744.6,3744.5,3.81418]
[1753501981057,1.87545878,3744.6,3744.5,3.2802]
[1753501981255,2.40942878,3744.6,3744.5,2.1167]
[1753501981463,2.40942878,3744.6,3744.5,1.7286]
[1753501981959,0.0547,3744.4,3744.3,1.3132]
[1753501982158,1.78425878,3744.4,3744.3,3.70801]
[1753501982564,1.75005878,3744.4,3744.3,3.70801]
[1753501983664,2.22935878,3744.4,3744.3,3.174]
[1753501983957,2.31825878,3744.4,3744.3,3.174]
[1753501990966,2.22935878,3744.4,3744.3,3.174]
[1753501991364,2.31825878,3744.4,3744.3,3.174]
[1753501992265,2.31825878,3744.4,3744.3,1.63]
[1753501992465,2.31825878,3744.4,3744.3,0.7273]
[1753501992769,1.60364,3744.1,3744.0,2.4467]
[1753501993068,2.31829878,3744.1,3744.0,2.4467]
[1753501993267,2.31829878,3744.1,3744.0,3.174]
[1753501996073,5.52609878,3744.1,3744.0,3.174]
[1753501997270,5.52609878,3744.1,3744.0,2.5804]
[1753501997470,5.52609878,3744.1,3744.0,0.7273]
[1753501999378,4.81144,3744.1,3744.0,0.7273]
[1753501999676,0.98927,3743.9,3743.8,1.1795]
[1753501999877,1.60367,3743.9,3743.8,1.9068]
[1753502000078,1.60367,3743.9,3743.8,2.8095]
[1753502000278,2.31791128,3743.9,3743.8,2.8095]
[1753502000478,2.31791128,3743.9,3743.8,3.174]
[1753502000778,1.60367,3743.9,3743.8,3.174]
[1753502001377,2.31816218,3743.9,3743.8,3.174]
[1753502001779,1.60367,3743.9,3743.8,3.174]
[1753502001982,2.31816359,3743.9,3743.8,3.174]
[1753502002780,1.60367,3743.9,3743.8,3.174]
[1753502004176,1.60367,3743.9,3743.8,2.5804]
[1753502004382,1.60367,3743.9,3743.8,0.7273]
[1753502004783,1.60367,3743.9,3743.8,1.9068]
[1753502004976,1.60367,3743.9,3743.8,2.8095]
[1753502005177,1.60367,3743.9,3743.8,3.174]
[1753502011879,1.60367,3743.9,3743.8,0.7273]
[1753502012076,1.52241,3743.6,3743.5,3.0395]
[1753502012381,1.52246,3743.3,3743.2,3.0395]
[1753502014487,1.51586,3743.3,3743.2,3.0395]
[1753502015184,1.50526,3743.3,3743.2,3.0395]
[1753502017392,1.51186,3743.3,3743.2,3.0395]
[1753502017893,1.52246,3743.3,3743.2,3.0395]
[1753502020498,2.2376821,3743.3,3743.2,3.0395]
[1753502020894,1.52246,3743.3,3743.2,3.0395]
[1753502021095,2.23769601,3743.3,3743.2,3.0395]
[1753502022497,1.24939601,3743.3,3743.2,3.0395]
[1753502022895,0.59,3742.9,3742.7,0.7205]
[1753502023095,3.2078,3743.0,3742.9,3.0395]
[1753502023297,3.9229712,3743.0,3742.9,3.0395]
[1753502023601,0.7151712,3743.0,3742.9,3.0395]
[1753502023898,1.2493712,3743.0,3742.9,3.0395]
[1753502024303,5.4282712,3743.0,3742.9,3.0395]
[1753502025196,5.4282712,3743.0,3742.9,0.7205]
[1753502025696,1.50534,3742.7,3742.6,3.0395]
[1753502025896,2.2205112,3742.7,3742.6,3.0395]
[1753502027795,2.22000314,3742.7,3742.6,3.0395]
[1753502032799,2.22000314,3742.7,3742.6,2.4973]
[1753502033198,2.22000314,3742.7,3742.6,3.0395]
[1753502043420,1.63000314,3742.7,3742.6,3.0395]
[1753502043621,2.16560314,3742.7,3742.6,3.0395]
[1753502056836,1.24890314,3742.7,3742.6,3.0395]
[1753502057440,0.75720385,3743.3,3743.1,0.4899]
[1753502057731,1.2549,3743.2,3743.1,0.4899]
[1753502058035,3.56287,3743.2,3743.1,1.2412]
[1753502058223,0.73363116,3743.3,3742.2,23.82563116]
[1753502058224,1.74923,3742.8,3742.7,1.2412]
[1753502058431,1.74923,3742.8,3742.7,0.7513]
[1753502058628,1.215,3742.4,3742.3,1.2412]
[1753502058828,2.2836,3742.4,3742.3,1.2412]
[1753502059435,0.5356,3743.1,3743.0,0.7513]
[1753502059625,1.78904,3743.5,3743.3,0.7513]
[1753502059831,2.28474,3743.5,3743.4,1.2412]
[1753502060429,3.56284,3743.5,3743.4,1.2412]
[1753502060830,3.0287,3743.5,3743.4,1.2412]
[1753502061030,3.0287,3743.5,3743.4,1.77534]
[1753502061226,2.533,3743.5,3743.4,1.77534]
[1753502061432,0.5356,3743.5,3743.4,1.77534]
[1753502061635,3.02716,3744.0,3743.9,0.4899]
[1753502061935,3.02716,3744.0,3743.9,1.2412]
[1753502062236,3.56276,3744.0,3743.9,1.2412]
[1753502063930,3.56276,3744.0,3743.9,1.57290414]
[1753502065133,3.56276,3744.0,3743.9,1.2412]
[1753502065435,1.7879,3743.7,3743.6,1.77531]
[1753502065636,0.5356,3743.7,3743.6,2.10695525]
[1753502069539,1.24459113,3743.7,3743.6,2.10695525]
[1753502069742,1.24459113,3743.7,3743.6,2.27945525]
[1753502071042,1.24459113,3743.7,3743.6,2.27901059]
[1753502073142,1.78729113,3743.7,3743.6,2.27901059]
[1753502073543,2.14839113,3743.7,3743.6,2.24581059]
[1753502074442,1.4394,3743.7,3743.6,2.24581059]
[1753502075539,0.5356,3743.7,3743.6,2.27901059]
[1753502076338,0.8967,3743.7,3743.6,2.24581059]
[1753502076544,1.4394,3743.7,3743.6,2.24581059]
[1753502077239,1.8346,3743.7,3743.6,2.24581059]
[1753502078439,0.5356,3743.7,3743.6,3.01264175]
[1753502078638,0.5689,3744.0,3743.9,0.6163]
[1753502078843,0.5689,3744.0,3743.9,1.78110059]
[1753502079042,1.27751062,3744.0,3743.9,1.78110059]
[1753502079638,3.83401062,3744.0,3743.9,2.17587059]
[1753502079843,3.1254,3744.0,3743.9,2.1425219]
[1753502080142,3.1254,3744.0,3743.9,2.1757219]
[1753502080339,3.1254,3744.0,3743.9,2.2287219]
[1753502080643,3.1254,3744.0,3743.9,2.1757219]
[1753502081340,3.83406036,3744.0,3743.9,2.1757219]
[1753502084942,3.83406036,3744.0,3743.9,1.6416519]
[1753502085142,3.83406036,3744.0,3743.9,2.1757219]
[1753502085339,4.36812036,3744.0,3743.9,0.3310519]
[1753502086642,4.36812036,3744.0,3743.9,0.8412519]
[1753502086846,4.36812036,3744.0,3743.9,1.6320519]
[1753502087046,3.31966036,3744.0,3743.9,2.2414219]
[1753502087247,2.57656036,3744.0,3743.9,2.2414219]
[1753502089449,1.27756036,3744.0,3743.9,2.2649219]
[1753502089946,1.27756036,3744.0,3743.9,2.2414219]
[1753502089947,2.57656036,3744.0,3743.9,2.2414219]
[1753502090341,3.31966036,3744.0,3743.9,2.2414219]
[1753502090540,2.57656036,3744.0,3743.9,2.2414219]
[1753502090846,1.27756036,3744.0,3743.9,2.2649219]
[1753502091847,1.27756036,3744.0,3743.9,2.26593612]
[1753502092147,1.82026036,3744.0,3743.9,2.26593612]
[1753502092347,2.18136036,3744.0,3743.9,2.24243612]
[1753502093446,2.57656036,3744.0,3743.9,2.24243612]
[1753502093846,3.31966036,3744.0,3743.9,2.24243612]
[1753502094245,3.83406036,3744.0,3743.9,2.24243612]
[1753502095049,3.83406036,3744.0,3743.9,2.14353612]
[1753502095451,3.83406036,3744.0,3743.9,2.16713612]
[1753502095656,3.83406036,3744.0,3743.9,1.63306612]
[1753502096253,4.36812036,3744.0,3743.9,1.60946612]
[1753502096754,4.36812036,3744.0,3743.9,0.33206612]
[1753502097356,4.36812036,3744.0,3743.9,1.09926612]
[1753502098256,4.36812036,3744.0,3743.9,1.60946612]
[1753502098457,4.36812036,3744.0,3743.9,1.63306612]
[1753502100351,4.36812036,3744.0,3743.9,1.60946612]
[1753502101057,4.36812036,3744.0,3743.9,0.33206612]
[1753502102753,3.31966036,3744.0,3743.9,1.66796612]
[1753502103057,1.27756036,3744.0,3743.9,2.94826728]
[1753502104052,1.27756036,3744.0,3743.9,2.41419728]
[1753502104258,2.18496036,3744.0,3743.9,2.40159728]
[1753502104465,2.57216036,3744.0,3743.9,2.40159728]
[1753502104659,3.27916036,3744.0,3743.9,2.93566728]
[1753502104861,4.28532036,3744.0,3743.9,1.61476612]
[1753502105065,4.28532036,3744.0,3743.9,0.33206612]
[1753502105556,4.28532036,3744.0,3743.9,1.61476612]
[1753502105756,4.28532036,3744.0,3743.9,1.62746612]
[1753502106659,4.28532036,3744.0,3743.9,1.66796612]
[1753502107261,3.75126036,3744.0,3743.9,2.20203612]
[1753502107462,1.27756036,3744.0,3743.9,2.21463612]
[1753502107960,3.2078,3744.5,3743.9,2.21463612]
[1753502107961,1.92232583,3745.3,3745.2,1.2827]
[1753502108160,0.5675,3745.6,3745.5,1.03414]
[1753502108360,0.907,3745.9,3745.8,1.0341]
[1753502108361,0.7675,3745.9,3745.8,1.0341]
[1753502108560,0.7675,3745.9,3745.8,2.88219728]
[1753502109760,1.1416,3745.9,3745.8,2.88219728]
[1753502110361,1.1416,3745.9,3745.8,2.55013116]
[1753502110758,2.7691,3745.9,3745.8,2.55013116]
[1753502110961,2.7691,3745.9,3745.8,2.88217775]
[1753502111668,2.7691,3745.9,3745.8,3.14810721]
[1753502112260,3.2412,3745.9,3745.8,3.14810721]
[1753502113166,1.5288,3745.9,3745.8,3.14810721]
[1753502113361,0.5855,3747.3,3747.2,0.5336]
[1753502113566,0.5855,3747.3,3747.2,5.75773116]
[1753502114064,3.0592,3747.3,3747.2,5.75773116]
[1753502114562,3.0592,3747.3,3747.2,3.2078]
[1753502114768,3.0592,3747.3,3747.2,3.20299609]
[1753502115270,3.0592,3747.3,3747.2,3.53389293]
[1753502115472,3.0592,3747.3,3747.2,5.01929609]
[1753502115768,3.0592,3747.3,3747.2,4.81595034]
[1753502115963,3.59278,3747.3,3747.2,3.53325034]
[1753502116369,3.59278,3747.3,3747.2,3.20299609]
[1753502118469,1.33382,3747.8,3747.7,2.72113]
[1753502118470,1.2403,3747.8,3747.7,2.72113]
[1753502118671,1.4334,3747.9,3747.8,2.72111]
[1753502118866,2.6737,3747.9,3747.8,2.72111]
[1753502119270,2.6737,3747.9,3747.8,2.17711]
[1753502119774,2.6737,3747.9,3747.8,1.6436]
[1753502120170,0.53351,3747.8,3747.7,3.2078]
[1753502120368,3.57471,3747.8,3747.7,3.2078]
[1753502120769,3.0412,3747.8,3747.7,3.2078]
[1753502120967,3.57471,3747.8,3747.7,3.2078]
[1753502121675,3.0412,3747.8,3747.7,3.2078]
[1753502122274,3.57471,3747.8,3747.7,3.2078]
[1753502122769,3.0412,3747.8,3747.7,4.8514]
[1753502123374,3.57471,3747.8,3747.7,4.069]
[1753502123574,3.0412,3747.8,3747.7,4.069]
[1753502123978,3.57471,3747.8,3747.7,4.069]
[1753502124873,0.53351,3747.8,3747.7,4.069]
[1753502125074,1e-05,3747.9,3747.8,2.72111]
[1753502125272,2.3342,3748.6,3748.5,2.72101]
[1753502125472,1.3288,3748.6,3748.5,6.31012331]
[1753502125673,0.5675,3748.6,3748.5,6.31012331]
[1753502125882,3.5746,3748.6,3748.5,0.38131331]
[1753502126075,1.76686,3748.2,3748.1,3.2078]
[1753502126274,3.0412,3748.2,3748.1,3.58912777]
[1753502126783,3.0412,3748.2,3748.1,3.2078]
[1753502126972,3.0412,3748.2,3748.1,5.37047]
[1753502127180,3.0412,3748.2,3748.1,5.6194]
[1753502127781,3.0412,3747.8,3747.7,3.2078]
[1753502128181,3.57471,3747.8,3747.7,3.2078]
[1753502131080,3.80508,3747.3,3746.5,1.53178937]
[1753502131276,3.80508,3747.3,3746.6,0.7619]
[1753502131277,3.80514,3746.9,3746.6,0.7619]
[1753502131482,3.2715,3746.4,3746.2,0.7619]
[1753502131680,3.80523,3746.3,3746.2,1.3457]
[1753502131978,3.2715,3746.0,3745.9,2.5061]
[1753502132676,3.80527,3746.0,3745.9,0.3795]
[1753502133681,3.2715,3746.0,3745.9,0.3795]
[1753502133882,3.2715,3746.0,3745.9,1.3457]
[1753502134081,3.2715,3746.0,3745.9,1.7442]
[1753502134278,3.2715,3746.0,3745.9,2.5061]
[1753502134484,3.80527,3746.0,3745.9,2.5061]
[1753502134681,3.80528,3745.9,3745.8,0.19755196]
[1753502137686,4.42595878,3745.9,3745.8,0.19755196]
[1753502138081,4.42595878,3745.9,3745.8,0.5603571]
[1753502139080,4.42642243,3745.9,3745.8,0.5603571]
[1753502140182,3.80528,3745.9,3745.8,0.5603571]
[1753502142478,8.80528,3745.9,3745.8,0.5603571]
[1753502142684,9.42567147,3745.9,3745.8,0.5603571]
[1753502143182,8.80528,3745.9,3745.8,0.5603571]
[1753502143488,8.80528,3745.9,3745.8,0.19755196]
[1753502144786,1.3404,3745.2,3744.8,1.3523]
[1753502144989,3.2343,3745.1,3745.0,0.3795]
[1753502145191,3.8054,3745.1,3745.0,1.70888059]
[1753502145485,3.8054,3745.1,3745.0,0.36318059]
[1753502146082,3.8055,3744.4,3744.3,0.3985]
[1753502146287,1.87441,3744.3,3744.2,0.01869533]
[1753502146488,3.80551,3744.3,3744.2,0.01869533]
[1753502147686,3.80551,3744.3,3744.2,0.79669533]
[1753502147883,3.80551,3744.3,3744.2,1.91219533]
[1753502149686,3.80551,3744.3,3744.2,2.67409533]
[1753502152195,3.80551,3744.3,3744.2,0.01869533]
[1753502152498,3.80551,3744.3,3744.2,2.67409533]
[1753502156101,3.23441,3744.3,3744.2,2.67409533]
[1753502156396,0.53401,3744.3,3744.2,3.26449533]
[1753502157798,1.10121,3744.3,3744.2,3.26449533]
[1753502158002,1.10121,3744.3,3744.2,3.60955439]
[1753502158498,1.9311,3744.9,3744.5,3.2458]
[1753502158699,0.53398,3744.6,3744.5,3.2458]
[1753502158901,0.53398,3744.6,3744.5,3.5910084]
[1753502159705,1.16368,3744.6,3744.5,3.5910084]
[1753502159897,2.38718,3744.6,3744.5,3.5910084]
[1753502160093,2.95228,3744.6,3744.5,3.5910084]
[1753502160699,1.4584,3744.9,3744.8,1.3735]
[1753502161002,3.33554,3744.9,3744.8,3.3983]
[1753502161200,3.96384,3744.9,3744.8,3.3983]
[1753502161400,3.96384,3744.9,3744.8,3.74433619]
[1753502163008,0.6297,3744.9,3744.8,3.74433619]
[1753502163312,3.2078,3745.1,3745.0,3.3983]
[1753502163504,3.83026537,3745.1,3745.0,3.74433619]
[1753502164109,0.62246537,3745.1,3745.0,4.27824619]
[1753502164511,1.258,3745.4,3745.0,3.74433619]
[1753502164711,1.78628184,3745.3,3745.2,1.3735]
[1753502164912,2.47590184,3745.3,3745.2,3.74433619]
[1753502165609,3.00977184,3745.3,3745.2,3.74433619]
[1753502165813,2.47590184,3745.3,3745.2,3.74433619]
[1753502166721,3.00977184,3745.3,3745.2,3.74433619]
[1753502167518,1.0245,3745.3,3745.2,3.74433619]
[1753502167716,1.55837,3745.3,3745.2,3.74433619]
[1753502167909,1.0245,3745.3,3745.2,3.74433619]
[1753502168111,1.0245,3745.3,3745.2,4.27821619]
[1753502168311,1.55837,3745.3,3745.2,4.27821619]
[1753502168511,4.0365,3745.5,3745.4,3.3983]
[1753502168512,4.37134,3745.5,3745.4,3.3983]
[1753502168714,3.74164,3745.5,3745.4,3.74433619]
[1753502169217,4.37134,3745.5,3745.4,3.74433619]
[1753502169415,7.17154,3745.5,3745.4,3.74433619]
[1753502169916,7.80117432,3745.5,3745.4,3.11583619]
[1753502170116,7.80117432,3745.5,3745.4,2.29363619]
[1753502170614,7.80117432,3745.5,3745.4,1.17843619]
[1753502171310,7.80117432,3745.5,3745.4,1.75253619]
[1753502171513,7.80117432,3745.5,3745.4,3.74433619]
[1753502172515,7.80117432,3745.5,3745.4,3.11583619]
[1753502173911,7.17154,3745.5,3745.4,3.11583619]
[1753502174314,7.17154,3745.5,3745.4,3.74433619]
[1753502175721,7.17154,3745.5,3745.4,3.74514156]
[1753502177928,1.16351,3745.7,3745.6,1.3735]
[1753502178221,0.6297,3745.7,3745.6,4.27897156]
[1753502178418,3.2078,3746.1,3745.7,0.53381]
[1753502178419,0.53379,3745.9,3745.7,0.53381]
[1753502178623,3.33539,3745.9,3745.8,3.74514156]
[1753502178819,3.96369,3745.9,3745.8,3.74514156]
[1753502179022,4.59293997,3745.9,3745.8,3.11664156]
[1753502179220,4.05914997,3745.9,3745.8,3.11664156]
[1753502179421,2.8016,3745.9,3745.8,4.27894156]
[1753502180416,3.96368,3745.9,3745.8,3.74514156]
[1753502180616,3.96368,3745.9,3745.8,3.11664156]
[1753502181417,3.4299,3745.9,3745.8,3.11664156]
[1753502181821,3.96368,3745.9,3745.8,3.11664156]
[1753502183820,3.96368,3745.9,3745.8,0.34684156]
[1753502186623,3.96368,3745.9,3745.8,0.92094156]
[1753502186822,3.96368,3745.9,3745.8,1.33664156]
[1753502187023,3.96368,3745.9,3745.8,2.57554156]
[1753502187224,3.96368,3745.9,3745.8,3.11664156]
[1753502189128,3.96368,3745.9,3745.8,0.34684156]
[1753502191127,3.96368,3745.9,3745.8,0.74934156]
[1753502191331,3.96368,3745.9,3745.8,3.07804156]
[1753502191921,3.96368,3745.9,3745.8,0.34684156]
[1753502192324,4.59361889,3745.9,3745.8,0.34684156]
[1753502192927,4.5936117,3745.9,3745.8,0.34684156]
[1753502193127,7.17148,3745.9,3745.8,0.34684156]
[1753502193328,7.80141176,3745.9,3745.8,0.34684156]
[1753502193529,8.53148186,3745.9,3745.8,0.34684156]
[1753502197024,1.3521,3745.0,3744.9,0.6242]
[1753502197229,3.86611,3745.0,3744.9,1.28329456]
[1753502197426,3.86611,3745.0,3744.9,2.7312]
[1753502199228,3.86611,3745.0,3744.9,2.98159888]
[1753502201925,3.86611,3745.0,3744.9,2.7312]
[1753502202332,3.86611,3745.0,3744.9,1.9618]
[1753502202922,3.86611,3745.0,3744.9,2.7312]
[1753502206934,3.86611,3745.0,3744.9,3.3256]
[1753502218537,0.5701,3745.0,3744.9,7.06733]
[1753502218742,2.88858,3745.3,3745.2,1.3376]
[1753502218945,3.51930775,3745.3,3745.2,3.3256]
[1753502219138,3.51930775,3745.3,3745.2,3.85948]
[1753502219339,4.08940775,3745.3,3745.2,3.85948]
[1753502219535,4.08940775,3745.3,3745.2,3.3256]
[1753502219736,4.49680775,3745.3,3745.2,3.3256]
[1753502219940,4.49680775,3745.3,3745.2,3.85948]
[1753502220545,4.49680775,3745.3,3745.2,3.3256]
[1753502221439,3.96292775,3745.3,3745.2,3.85948]
[1753502222644,4.49679775,3745.3,3745.2,3.3256]
[1753502223036,4.49679775,3745.3,3745.2,2.7312]
[1753502223237,4.49679775,3745.3,3745.2,3.343]
[1753502224147,4.49679775,3745.3,3745.2,2.7312]
[1753502227551,3.2489,3744.9,3744.8,1.84843]
[1753502227753,3.2489,3744.9,3744.8,2.46023]
[1753502228051,0.5822,3744.9,3744.8,2.46023]
[1753502228352,0.5822,3744.9,3744.8,4.5795001]
[1753502228644,1.7488,3745.1,3745.0,3.84941]
[1753502228849,2.38062542,3745.1,3745.0,3.84941]
[1753502229851,1.21402542,3745.1,3745.0,3.84941]
[1753502230355,0.63182542,3745.1,3745.0,3.84941]
[1753502230552,0.5822,3745.4,3745.3,3.84937]
[1753502230849,1.21399807,3745.4,3745.3,4.5794401]
[1753502231246,0.5822,3745.4,3745.3,4.5794401]
[1753502232751,1.338,3745.4,3745.3,4.5794401]
[1753502233152,2.3587,3745.4,3745.3,4.5794401]
[1753502233353,2.8711,3745.4,3745.3,3.84937]
[1753502236163,0.5822,3745.4,3745.3,3.84937]
[1753502236364,1.338,3745.4,3745.3,3.84937]
[1753502236565,2.2612,3745.4,3745.3,3.84937]
[1753502236865,2.8711,3745.4,3745.3,3.84937]
[1753502237666,3.2489,3745.4,3745.3,3.84937]
[1753502237868,3.2489,3745.4,3745.3,3.23757]
[1753502239569,1.301,3745.1,3744.8,1.3892]
[1753502239774,2.7365,3744.7,3744.6,2.71547]
[1753502239967,3.2489,3744.7,3744.6,2.96587458]
[1753502240168,3.2489,3744.7,3744.6,2.71547]
[1753502241170,3.2489,3744.7,3744.6,3.23767]
[1753502242974,3.2489,3744.7,3744.2,5.12310475]
[1753502243173,3.7829,3744.4,3744.3,1.0084]
[1753502243468,3.78291,3744.3,3744.2,0.01869533]
[1753502245176,3.2489,3744.3,3744.2,0.62229533]
[1753502245374,3.78291,3744.3,3744.2,0.62229533]
[1753502246472,3.78291,3744.3,3744.2,0.01869533]
[1753502260090,8.78291,3744.3,3744.2,0.01869533]
[1753502260294,3.71254,3743.4,3743.3,0.5639]
[1753502260489,3.71254,3743.4,3743.3,2.1421]
[1753502262397,3.71254,3743.4,3743.3,3.2353]
[1753502265894,3.71254,3743.4,3743.3,2.6678]
[1753502269703,3.71254,3743.4,3743.3,0.9642]
[1753502270101,3.71254,3743.4,3743.3,2.1421]
[1753502270504,3.71254,3743.4,3743.3,2.6678]
[1753502271798,3.71254,3743.4,3743.3,3.2353]
[1753502275801,3.71254,3743.4,3743.3,2.6678]
[1753502277206,3.71254,3743.4,3743.3,3.2353]
[1753502279206,3.71254,3743.4,3743.3,2.6678]
[1753502281310,3.71254,3743.4,3743.3,3.2529]
[1753502282118,3.71254,3743.4,3743.3,2.6678]
[1753502286323,3.71254,3743.4,3743.3,1.3429]
[1753502286523,3.71254,3743.4,3743.3,0.9642]
[1753502287520,4.34629778,3743.4,3743.3,0.9642]
[1753502288127,1.83707,3743.2,3743.1,2.0634]
[1753502288424,3.74587,3743.2,3743.1,2.583]
[1753502289726,3.74587,3743.2,3743.1,3.1667]
[1753502290428,3.16767,3743.2,3743.1,3.1667]
[1753502290627,2.77147,3743.2,3743.1,3.1667]
[1753502291422,2.25777,3743.2,3743.1,3.1667]
[1753502292220,1.11947,3743.2,3743.1,3.1667]
[1753502292527,0.53417,3743.2,3743.1,3.1667]
[1753502293526,1.11947,3743.2,3743.1,3.1667]
[1753502293728,1.86477,3743.2,3743.1,3.1667]
[1753502294028,3.74587,3743.2,3743.1,3.1667]
[1753502298527,2.48691,3742.9,3742.8,2.0234]
[1753502298725,3.74591,3742.9,3742.8,0.9679724]
[1753502299124,3.74594,3742.7,3742.6,1.89660942]
[1753502299328,3.2117,3742.5,3742.4,3.18910942]
[1753502299531,3.2117,3742.5,3742.4,5.83264564]
[1753502299832,3.2117,3742.5,3742.4,3.40175337]
[1753502300028,3.74597,3742.5,3742.4,3.40175337]
[1753502300227,3.2117,3742.5,3742.4,3.40171044]
[1753502300426,3.2117,3742.5,3742.4,3.70098]
[1753502300835,3.74597,3742.5,3742.4,3.1667]
[1753502301133,3.74597,3742.5,3742.4,2.583]
[1753502301434,3.74597,3742.5,3742.4,0.9236]
[1753502301634,1.8372,3742.3,3742.2,2.0634]
[1753502301828,3.746,3742.3,3742.2,2.81796165]
[1753502302534,3.746,3742.3,3742.2,3.40166165]
[1753502302735,3.746,3742.3,3742.2,3.1667]
[1753502304331,3.746,3742.3,3742.2,2.583]